{"text_format":"1","workbook":"xlsx","n_sheets":2,"sheets":["排水設備新設等計画（変更）確認書（こちらに入力）","排水設備新設等計画（変更）確認申請書（転記を確認しこちらも提出"],"not_rendered":{"charts":0,"images":1,"macros":1,"external_links":0,"defined_names":2,"comments":0,"pivot_tables":0},"unopened":[],"bounds":{"document_bytes":16777216,"sheet_cells":100000,"rows_first":2000,"rows_last":500,"rows_between":2000,"halvings":0,"cell_chars":16384,"cell_head_chars":4096},"cells_cut":0,"cells_raw":0,"read":"whole","date_system":"1900"}

{"sheet":"排水設備新設等計画（変更）確認書（こちらに入力）","index":0,"n_rows":66,"n_cols":86,"rows_kept":66,"cut":false,"hidden":false,"merged":[[59,74,60,79],[27,83,28,84],[27,85,28,86],[25,72,26,84],[21,85,22,86],[21,83,22,84],[21,72,22,74],[27,75,28,76],[27,77,28,78],[27,79,28,80],[27,81,28,82],[25,85,26,86],[21,79,22,80],[27,72,28,74],[21,81,22,82],[21,77,22,78],[21,75,22,76],[27,68,28,71],[29,57,45,58],[21,56,22,57],[21,53,22,55],[16,46,19,49],[12,42,13,43],[12,22,13,38],[12,39,13,41],[14,22,15,38],[14,39,15,41],[27,19,28,23],[21,21,22,28],[14,19,15,21],[12,19,13,21],[17,50,18,54],[15,50,16,54],[27,45,28,48],[44,59,45,68],[23,51,24,54],[21,36,22,38],[21,42,22,44],[15,55,16,74],[17,55,18,74],[27,55,28,58],[65,18,66,22],[65,25,66,30],[63,7,64,14],[65,7,66,14],[65,33,66,38],[27,1,28,9],[27,13,28,16],[27,26,28,29],[25,32,26,35],[27,32,28,35],[27,38,28,41],[25,13,26,16],[25,19,26,22],[25,26,26,29],[63,25,64,26],[63,20,64,22],[27,53,28,54],[27,49,28,52],[27,59,28,67],[63,18,64,19],[6,1,7,9],[63,39,66,42],[54,58,57,85],[59,68,60,72],[59,82,60,83],[63,1,66,6],[21,1,22,9],[23,1,24,9],[25,1,26,9],[17,1,20,9],[46,57,47,62],[48,59,49,79],[50,59,51,79],[9,37,9,38],[29,10,30,33],[17,29,20,33],[21,29,22,33],[17,34,20,44],[12,11,13,14],[6,15,7,40],[23,13,24,16],[23,19,24,22],[9,40,9,41],[21,11,22,18],[21,19,22,20],[21,45,22,48],[23,45,24,48],[19,71,20,72],[17,11,20,13],[23,59,24,62],[23,67,24,70],[19,55,20,70],[17,24,20,26],[21,49,22,52],[17,27,20,28],[17,14,20,23],[9,32,9,35],[25,50,26,64],[25,65,26,67],[25,68,26,71],[6,55,7,76],[8,47,10,84],[12,59,13,61],[19,50,20,54],[15,75,16,86],[25,45,26,48],[21,68,22,71],[21,58,22,59],[21,60,22,61],[21,62,22,63],[21,64,22,65],[21,66,22,67],[12,62,13,77],[12,78,13,79],[12,80,13,85],[17,84,18,85],[17,76,18,83],[19,76,20,85]]}
[]
[]
[]
[]
[null,"様式第３号（第６条第１項関係）"]
[]
[null,"受付印・番号",null,null,null,null,null,null,null,null,null,null,null,null,null,"排水設備新設等計画（変更）確認書",null,null,null,null,null,null,null,null,null,null,null,null,null,null,null,null,null,null,null,null,null,null,null,null,null,null,null,null,null,null,null,null,null,null,null,null,null,null,null,"誓約書"]
[]
[null,null,null,null,null,null,null,null,null,null,null,null,null,null,null,null,null,null,null,null,null,null,null,null,null,null,null,null,null,null,null,null,null,null,null,null,null,null,null,null,null,null,null,null,null,null,null,"　多賀町農業集落排水処理施設の設置および管理に関する条例および同規定に基づく排水設備の設置について、後日問題が発じた場合、一切私の責任において処理し町に対し迷惑、損害をかけないことを誓約します。"]
[null,null,null,null,null,null,null,null,null,null,null,null,null,null,null,null,null,null,null,null,null,null,null,null,null,null,null,null,null,null,null,null,null,null,null,null,"年",null,null,"月",null,null,"日"]
[]
[]
[null,null,null,null,null,null,null,null,null,null,null,"申請者",null,null,null,null,null,null,null,"住所",null,null,null,null,null,null,null,null,null,null,null,null,null,null,null,null,null,null,null,"番地",null,null,null,null,null,null,null,null,null,null,null,null,null,null,null,null,null,null,null,"氏名",null,null,null,null,null,null,null,null,null,null,null,null,null,null,null,null,null,null,"㊞",null,"(署名または記名押印）"]
[]
[null,null,null,null,null,null,null,null,null,null,null,null,null,null,null,null,null,null,null,"氏名"]
[null,null,null,null,null,null,null,null,null,null,null,null,null,null,null,null,null,null,null,null,null,null,null,null,null,null,null,null,null,null,null,null,null,null,null,null,null,null,null,null,null,null,null,null,null,null,null,null,null,null,"所在地",null,null,null,null,null,null,null,null,null,null,null,null,null,null,null,null,null,null,null,null,null,null,null,null,"責任技術者"]
[null,null,null,null,null,null,null,null,null,null,null,null,null,null,null,null,null,null,null,null,null,null,null,null,null,null,null,null,null,null,null,null,null,null,null,null,null,null,null,null,null,null,null,null,null,null,"施工業者"]
[null,"施工場所",null,null,null,null,null,null,null,null,null,"多賀町",null,null,null,null,null,null,null,null,null,null,null,null,"番地",null,null,null,null,"管理番号",null,null,null,null,null,null,null,null,null,null,null,null,null,null,null,null,null,null,null,null,"名称",null,null,null,null,null,null,null,null,null,null,null,null,null,null,null,null,null,null,null,null,null,null,null,null,null,null,null,null,null,null,null,null,null,"㊞"]
[]
[null,null,null,null,null,null,null,null,null,null,null,null,null,null,null,null,null,null,null,null,null,null,null,null,null,null,null,null,null,null,null,null,null,null,null,null,null,null,null,null,null,null,null,null,null,null,null,null,null,null,"代表者氏名",null,null,null,null,null,null,null,null,null,null,null,null,null,null,null,null,null,null,null,null,null,null,null,null,null,"(署名または記名押印）"]
[]
[null,"使用者名",null,null,null,null,null,null,null,null,null,null,null,null,null,null,null,null,null,"℡",null,null,null,null,null,null,null,null,null,"処理区名",null,null,null,null,null,null,"萱原",null,null,null,null,null,"佐目",null,null,"工事予定",null,null,null,"着工",null,null,null,"令和",null,null,null,null,"年",null,null,null,"月",null,null,null,"日",null,"完工",null,null,null,"令和",null,null,null,null,"年",null,null,null,"月",null,null,null,"日"]
[]
[null,"家屋等所有区分",null,null,null,null,null,null,null,null,null,null,null,"持家",null,null,null,null,null,"借家",null,null,null,null,null,null,null,null,null,null,null,null,null,null,null,null,null,null,null,null,null,null,null,null,null,"排水区分",null,null,null,null,null,"家事用",null,null,null,null,null,null,null,"営業用",null,null,null,null,null,null,null,"その他"]
[]
[null,"排水設備工事区分",null,null,null,null,null,null,null,null,null,null,null,"新設",null,null,null,null,null,"増設",null,null,null,null,null,null,"修理",null,null,null,null,null,"改築",null,null,null,null,null,null,null,null,null,null,null,null,"排水面積",null,null,null,null,null,null,null,null,null,null,null,null,null,null,null,null,null,null,null,"㎡",null,null,"家屋面積",null,null,null,null,null,null,null,null,null,null,null,null,null,null,null,null,"㎡"]
[]
[null,"用水源区分",null,null,null,null,null,null,null,null,null,null,null,"上水道",null,null,null,null,null,"簡易水道",null,null,null,null,null,null,"併用",null,null,null,null,null,"井戸",null,null,null,null,null,"その他",null,null,null,null,null,null,"使用人員",null,null,null,null,null,null,null,"人",null,"水栓番号",null,null,null,null,null,null,null,null,null,null,null,null,"工事完了届",null,null,null,"令和",null,null,null,null,"年",null,null,null,"月",null,null,null,"日"]
[]
[null,null,"設　　　計　　　図",null,null,null,null,null,null,null,"※台所配水の防臭桝は、かご付きであること。",null,null,null,null,null,null,null,null,null,null,null,null,null,null,null,null,null,null,null,null,null,null,null,null,null,null,null,null,null,null,null,null,null,null,null,null,null,null,null,null,null,null,null,null,null,null,"付近見取図"]
[]
[]
[]
[]
[]
[]
[]
[]
[]
[]
[]
[]
[]
[]
[null,null,null,null,null,null,null,null,null,null,null,null,null,null,null,null,null,null,null,null,null,null,null,null,null,null,null,null,null,null,null,null,null,null,null,null,null,null,null,null,null,null,null,null,null,null,null,null,null,null,null,null,null,null,null,null,null,null,null,"目標を必ず記入すること。"]
[]
[null,null,null,null,null,null,null,null,null,null,null,null,null,null,null,null,null,null,null,null,null,null,null,null,null,null,null,null,null,null,null,null,null,null,null,null,null,null,null,null,null,null,null,null,null,null,null,null,null,null,null,null,null,null,null,null,null,"指示事項"]
[]
[null,null,null,null,null,null,null,null,null,null,null,null,null,null,null,null,null,null,null,null,null,null,null,null,null,null,null,null,null,null,null,null,null,null,null,null,null,null,null,null,null,null,null,null,null,null,null,null,null,null,null,null,null,null,null,null,null,null,1,"施工に際しては申請書の記載事項と相違しないこと。"]
[]
[null,null,null,null,null,null,null,null,null,null,null,null,null,null,null,null,null,null,null,null,null,null,null,null,null,null,null,null,null,null,null,null,null,null,null,null,null,null,null,null,null,null,null,null,null,null,null,null,null,null,null,null,null,null,null,null,null,null,2,"確認事項について変更が生じたときは、直ちに再度\n確認申請書を提出すること。"]
[]
[]
[]
[null,null,null,null,null,null,null,null,null,null,null,null,null,null,null,null,null,null,null,null,null,null,null,null,null,null,null,null,null,null,null,null,null,null,null,null,null,null,null,null,null,null,null,null,null,null,null,null,null,null,null,null,null,null,null,null,null,null,"あなたから申請のありました排水設備新設（増設・改築）の計画について、多賀町農業集落排水処理施設の設置および管理に関する規則第６条第１項の規定に基づき、次のとおり承認します。"]
[]
[]
[]
[]
[null,null,null,null,null,null,null,null,null,null,null,null,null,null,null,null,null,null,null,null,null,null,null,null,null,null,null,null,null,null,null,null,null,null,null,null,null,null,null,null,null,null,null,null,null,null,null,null,null,null,null,null,null,null,null,null,null,null,null,null,null,null,null,null,null,null,null,null,"多賀町長"]
[]
[]
[]
[null,"確認の条件",null,null,null,null,null,"ディスポーザー設置",null,null,null,null,null,null,null,null,null,null,"有",null,"・",null,null,null,null,"無",null,null,null,null,null,null,null,null,null,null,null,null,null,"凡例"]
[]
[null,null,null,null,null,null,null,"既 設 処 理 方 法 ",null,null,null,null,null,null,null,null,null,null,"汲み取り",null,null,null,null,null,null,"単独浄化槽",null,null,null,null,null,null,null,"合併浄化槽"]

{"sheet":"排水設備新設等計画（変更）確認申請書（転記を確認しこちらも提出","index":1,"n_rows":67,"n_cols":86,"rows_kept":67,"cut":false,"hidden":false,"merged":[[11,8,11,12],[64,20,65,22],[64,25,65,26],[21,36,22,38],[21,42,22,44],[53,75,54,86],[53,57,54,74],[6,5,7,40],[8,3,9,42],[25,1,26,9],[25,13,26,16],[25,19,26,22],[25,26,26,29],[25,32,26,35],[25,45,26,48],[25,50,26,64],[25,65,26,67],[25,68,26,71],[23,1,24,9],[23,13,24,16],[23,19,24,22],[23,45,24,48],[23,51,24,54],[21,1,22,9],[66,33,67,38],[27,38,28,41],[27,45,28,48],[27,79,28,80],[27,81,28,82],[27,83,28,84],[27,85,28,86],[27,49,28,52],[27,53,28,54],[27,55,28,58],[27,59,28,67],[27,68,28,71],[27,72,28,74],[0,65,0,68],[0,69,0,86],[64,1,67,6],[64,7,65,14],[64,39,67,42],[66,7,67,14],[66,18,67,22],[66,25,67,30],[29,10,30,33],[29,57,45,58],[44,59,45,68],[46,57,47,62],[48,59,49,79],[50,59,51,79],[27,75,28,76],[27,77,28,78],[64,18,65,19],[25,72,26,84],[25,85,26,86],[27,1,28,9],[27,13,28,16],[27,19,28,23],[27,26,28,29],[27,32,28,35],[12,78,13,79],[12,80,13,85],[17,76,18,83],[17,84,18,85],[19,76,20,85],[23,59,24,62],[23,67,24,70],[19,50,20,54],[19,55,20,70],[19,71,20,72],[21,77,22,78],[21,79,22,80],[21,81,22,82],[21,83,22,84],[21,85,22,86],[21,72,22,74],[21,75,22,76],[21,62,22,63],[21,64,22,65],[21,66,22,67],[21,68,22,71],[21,49,22,52],[21,53,22,55],[21,56,22,57],[21,19,22,20],[21,21,22,28],[21,29,22,33],[17,55,18,74],[21,58,22,59],[21,60,22,61],[17,14,20,23],[17,24,20,26],[17,27,20,28],[21,11,22,18],[21,45,22,48],[10,32,10,35],[6,55,7,76],[8,47,10,84],[10,37,10,38],[10,40,10,41],[17,1,20,9],[17,11,20,13],[17,29,20,33],[17,34,20,44],[14,19,15,21],[14,22,15,38],[14,39,15,41],[15,50,16,54],[15,55,16,74],[15,75,16,86],[16,46,19,49],[17,50,18,54],[12,11,13,14],[12,19,13,21],[12,22,13,38],[12,39,13,41],[12,42,13,43],[12,59,13,61],[12,62,13,77]]}
[null,null,null,null,null,null,null,null,null,null,null,null,null,null,null,null,null,null,null,null,null,null,null,null,null,null,null,null,null,null,null,null,null,null,null,null,null,null,null,null,null,null,null,null,null,null,null,null,null,null,null,null,null,null,null,null,null,null,null,null,null,null,null,null,null,"課長",null,null,null,"合議"]
[null,null,null,null,null,null,null,null,null,null,null,null,null,null,null,null,null,null,null,null,null,null,null,null,null,null,null,null,null,null,null,null,null,null,null,null,null,null,null,null,null,null,null,null,null,null,null,null,null,null,null,null,null,null,null,null,null,null,null,null,null,null,null,null,null,false,false,false,false,false,false]
[null,null,null,null,null,null,null,null,null,null,null,null,null,null,null,null,null,null,null,null,null,null,null,null,null,null,null,null,null,null,null,null,null,null,null,null,null,null,null,null,null,null,null,null,null,null,null,null,null,null,null,null,null,null,null,null,null,null,null,null,null,null,null,null,null,false,false,false,false,false,false,false]
[null,null,null,null,null,null,null,null,null,null,null,null,null,null,null,null,null,null,null,null,null,null,null,null,null,null,null,null,null,null,null,null,null,null,null,null,null,null,null,null,null,null,null,null,null,null,null,null,null,null,null,null,null,null,null,null,null,null,null,null,null,null,null,null,null,false,false,false,false,false,false]
[null,"様式第１号（第５条第１項関係）",null,null,null,null,null,null,null,null,null,null,null,null,null,null,null,null,null,null,null,null,null,null,null,null,null,null,null,null,null,null,null,null,null,null,null,null,null,null,null,null,null,null,null,null,null,null,null,null,null,null,null,null,null,null,null,null,null,null,null,null,null,null,null,false,false]
[]
[null,null,null,null,null,"排水設備新設等計画（変更）確認申請書",null,null,null,null,null,null,null,null,null,null,null,null,null,null,null,null,null,null,null,null,null,null,null,null,null,null,null,null,null,null,null,null,null,null,null,null,null,null,null,null,null,null,null,null,null,null,null,null,null,"誓約書"]
[]
[null,null,null,"　排水設備の新設等の計画（変更）の確認を受けたいので、多賀町農業集落排水処理施設の設置および管理に関する規則第５条第１項の規定により、申請します。",null,null,null,null,null,null,null,null,null,null,null,null,null,null,null,null,null,null,null,null,null,null,null,null,null,null,null,null,null,null,null,null,null,null,null,null,null,null,null,null,null,null,null,"　多賀町農業集落排水処理施設の設置および管理に関する条例および同規定に基づく排水設備の設置について、後日問題が発じた場合、一切私の責任において処理し町に対し迷惑、損害をかけないことを誓約します。"]
[]
[null,null,null,null,null,null,null,null,null,null,null,null,null,null,null,null,null,null,null,null,null,null,null,null,null,null,null,null,null,null,null,null,null,null,null,null,"年",null,null,"月",null,null,"日"]
[null,null,null,"多賀町長",null,null,null,null,null,null,null,null,null,null,"様"]
[null,null,null,null,null,null,null,null,null,null,null,"申請者",null,null,null,null,null,null,null,"住所",null,null,{"$f":"'排水設備新設等計画（変更）確認書（こちらに入力）'!W13:AM14","v":0},null,null,null,null,null,null,null,null,null,null,null,null,null,null,null,null,"番地",null,null,{"$f":"'排水設備新設等計画（変更）確認書（こちらに入力）'!AQ13:AR14","v":0},null,null,null,null,null,null,null,null,null,null,null,null,null,null,null,null,"氏名",null,null,{"$f":"'排水設備新設等計画（変更）確認書（こちらに入力）'!BK13:BZ14","v":0},null,null,null,null,null,null,null,null,null,null,null,null,null,null,null,"㊞",null,"(署名または記名押印）"]
[]
[null,null,null,null,null,null,null,null,null,null,null,null,null,null,null,null,null,null,null,"氏名",null,null,{"$f":"'排水設備新設等計画（変更）確認書（こちらに入力）'!W15:AM16","v":0}]
[null,null,null,null,null,null,null,null,null,null,null,null,null,null,null,null,null,null,null,null,null,null,null,null,null,null,null,null,null,null,null,null,null,null,null,null,null,null,null,null,null,null,null,null,null,null,null,null,null,null,"所在地",null,null,null,null,{"$f":"'排水設備新設等計画（変更）確認書（こちらに入力）'!BD16:BW17","v":0},null,null,null,null,null,null,null,null,null,null,null,null,null,null,null,null,null,null,null,"責任技術者"]
[null,null,null,null,null,null,null,null,null,null,null,null,null,null,null,null,null,null,null,null,null,null,null,null,null,null,null,null,null,null,null,null,null,null,null,null,null,null,null,null,null,null,null,null,null,null,"施工業者"]
[null,"施工場所",null,null,null,null,null,null,null,null,null,"多賀町",null,null,{"$f":"'排水設備新設等計画（変更）確認書（こちらに入力）'!O18:X21","v":0},null,null,null,null,null,null,null,null,null,"番地",null,null,{"$f":"'排水設備新設等計画（変更）確認書（こちらに入力）'!AB18:AC21","v":0},null,"管理番号",null,null,null,null,{"$f":"'排水設備新設等計画（変更）確認書（こちらに入力）'!AI18:AS21","v":0},null,null,null,null,null,null,null,null,null,null,null,null,null,null,null,"名称",null,null,null,null,{"$f":"'排水設備新設等計画（変更）確認書（こちらに入力）'!BD18:BW19","v":0},null,null,null,null,null,null,null,null,null,null,null,null,null,null,null,null,null,null,null,null,{"$f":"'排水設備新設等計画（変更）確認書（こちらに入力）'!BY18:CF19","v":0},null,null,null,null,null,null,null,"㊞"]
[]
[null,null,null,null,null,null,null,null,null,null,null,null,null,null,null,null,null,null,null,null,null,null,null,null,null,null,null,null,null,null,null,null,null,null,null,null,null,null,null,null,null,null,null,null,null,null,null,null,null,null,"代表者氏名",null,null,null,null,{"$f":"'排水設備新設等計画（変更）確認書（こちらに入力）'!BD20:BS21","v":0},null,null,null,null,null,null,null,null,null,null,null,null,null,null,null,null,null,null,null,null,"(署名または記名押印）"]
[]
[null,"使用者名",null,null,null,null,null,null,null,null,null,{"$f":"'排水設備新設等計画（変更）確認書（こちらに入力）'!L22:S23","v":0},null,null,null,null,null,null,null,"℡",null,{"$f":"'排水設備新設等計画（変更）確認書（こちらに入力）'!V22:AC23","v":0},null,null,null,null,null,null,null,"処理区名",null,null,null,null,null,null,"萱原",null,null,null,null,null,"佐目",null,null,"工事予定",null,null,null,"着工",null,null,null,"令和",null,null,{"$f":"'排水設備新設等計画（変更）確認書（こちらに入力）'!BE22:BF23","v":0},null,"年",null,{"$f":"'排水設備新設等計画（変更）確認書（こちらに入力）'!BI22:BJ23","v":0},null,"月",null,{"$f":"'排水設備新設等計画（変更）確認書（こちらに入力）'!BM22:BN23","v":0},null,"日",null,"完工",null,null,null,"令和",null,null,{"$f":"'排水設備新設等計画（変更）確認書（こちらに入力）'!BX22:BY23","v":0},null,"年",null,{"$f":"'排水設備新設等計画（変更）確認書（こちらに入力）'!CB22:CC23","v":0},null,"月",null,{"$f":"'排水設備新設等計画（変更）確認書（こちらに入力）'!CF22:CG23","v":0},null,"日"]
[]
[null,"家屋等所有区分",null,null,null,null,null,null,null,null,null,null,null,"持家",null,null,null,null,null,"借家",null,null,null,null,null,null,null,null,null,null,null,null,null,null,null,null,null,null,null,null,null,null,null,null,null,"排水区分",null,null,null,null,null,"家事用",null,null,null,null,null,null,null,"営業用",null,null,null,null,null,null,null,"その他"]
[]
[null,"排水設備工事区分",null,null,null,null,null,null,null,null,null,null,null,"新設",null,null,null,null,null,"増設",null,null,null,null,null,null,"修理",null,null,null,null,null,"改築",null,null,null,null,null,null,null,null,null,null,null,null,"排水面積",null,null,null,null,{"$f":"'排水設備新設等計画（変更）確認書（こちらに入力）'!AY26:BM27","v":0},null,null,null,null,null,null,null,null,null,null,null,null,null,null,"㎡",null,null,"家屋面積",null,null,null,{"$f":"'排水設備新設等計画（変更）確認書（こちらに入力）'!BU26:CG27","v":0},null,null,null,null,null,null,null,null,null,null,null,null,"㎡"]
[]
[null,"用水源区分",null,null,null,null,null,null,null,null,null,null,null,"上水道",null,null,null,null,null,"簡易水道",null,null,null,null,null,null,"併用",null,null,null,null,null,"井戸",null,null,null,null,null,"その他",null,null,null,null,null,null,"使用人員",null,null,null,{"$f":"'排水設備新設等計画（変更）確認書（こちらに入力）'!AX28:BA29","v":0},null,null,null,"人",null,"水栓番号",null,null,null,{"$f":"'排水設備新設等計画（変更）確認書（こちらに入力）'!BH28:BP29","v":0},null,null,null,null,null,null,null,null,"工事完了届",null,null,null,"令和",null,null,{"$f":"'排水設備新設等計画（変更）確認書（こちらに入力）'!BX28:BY29","v":0},null,"年",null,{"$f":"'排水設備新設等計画（変更）確認書（こちらに入力）'!CB28:CC29","v":0},null,"月",null,{"$f":"'排水設備新設等計画（変更）確認書（こちらに入力）'!CF28:CG29","v":0},null,"日"]
[]
[null,null,"設　　　計　　　図",null,null,null,null,null,null,null,"※台所配水の防臭桝は、かご付きであること。",null,null,null,null,null,null,null,null,null,null,null,null,null,null,null,null,null,null,null,null,null,null,null,null,null,null,null,null,null,null,null,null,null,null,null,null,null,null,null,null,null,null,null,null,null,null,"付近見取図"]
[]
[]
[]
[]
[]
[]
[]
[]
[]
[]
[]
[]
[]
[]
[null,null,null,null,null,null,null,null,null,null,null,null,null,null,null,null,null,null,null,null,null,null,null,null,null,null,null,null,null,null,null,null,null,null,null,null,null,null,null,null,null,null,null,null,null,null,null,null,null,null,null,null,null,null,null,null,null,null,null,"目標を必ず記入すること。"]
[]
[null,null,null,null,null,null,null,null,null,null,null,null,null,null,null,null,null,null,null,null,null,null,null,null,null,null,null,null,null,null,null,null,null,null,null,null,null,null,null,null,null,null,null,null,null,null,null,null,null,null,null,null,null,null,null,null,null,"指示事項"]
[]
[null,null,null,null,null,null,null,null,null,null,null,null,null,null,null,null,null,null,null,null,null,null,null,null,null,null,null,null,null,null,null,null,null,null,null,null,null,null,null,null,null,null,null,null,null,null,null,null,null,null,null,null,null,null,null,null,null,null,1,"施工に際しては申請書の記載事項と相違しないこと。"]
[]
[null,null,null,null,null,null,null,null,null,null,null,null,null,null,null,null,null,null,null,null,null,null,null,null,null,null,null,null,null,null,null,null,null,null,null,null,null,null,null,null,null,null,null,null,null,null,null,null,null,null,null,null,null,null,null,null,null,null,2,"確認事項について変更が生じたときは、直ちに再度\n確認申請書を提出すること。"]
[]
[]
[null,null,null,null,null,null,null,null,null,null,null,null,null,null,null,null,null,null,null,null,null,null,null,null,null,null,null,null,null,null,null,null,null,null,null,null,null,null,null,null,null,null,null,null,null,null,null,null,null,null,null,null,null,null,null,null,null,"備考欄",null,null,null,null,null,null,null,null,null,null,null,null,null,null,null,null,null,"受付印・番号"]
[]
[]
[]
[]
[]
[]
[]
[]
[]
[]
[null,"確認の条件",null,null,null,null,null,"ディスポーザー設置",null,null,null,null,null,null,null,null,null,null,"有",null,"・",null,null,null,null,"無",null,null,null,null,null,null,null,null,null,null,null,null,null,"凡例"]
[]
[null,null,null,null,null,null,null,"既 設 処 理 方 法 ",null,null,null,null,null,null,null,null,null,null,"汲み取り",null,null,null,null,null,null,"単独浄化槽",null,null,null,null,null,null,null,"合併浄化槽"]